bitfinex/quotes_SOLUSD_20230111
["timestamp","ask_amount","ask_price","bid_price","bid_amount"]
[1673450028976,1.92,15.759,15.753,47.62]
[1673450029937,75.58129188,15.765,15.753,47.62]
[1673450030242,1.92,15.764,15.753,47.62]
[1673450030430,1.92,15.764,15.754,20.0]
[1673450030644,13.66,15.76,15.754,20.0]
[1673450030872,1.92,15.759,15.754,20.0]
[1673450033915,13.66,15.76,15.754,20.0]
[1673450034122,56.4363246,15.765,15.755,47.61]
[1673450034338,56.4363246,15.765,15.756,20.0]
[1673450035503,1.92,15.764,15.756,20.0]
[1673450036021,19.14496728,15.767,15.757,20.0]
[1673450036233,108.0277,15.768,15.757,67.61]
[1673450036426,108.0277,15.768,15.758,20.0]
[1673450036850,108.0277,15.768,15.76,20.0]
[1673450037172,13.87,15.77,15.76,20.0]
[1673450037814,1.92,15.769,15.759,47.6]
[1673450038016,1.92,15.769,15.758,47.6]
[1673450038239,1.92,15.769,15.757,67.61]
[1673450038538,21.92,15.769,15.757,20.0]
[1673450038758,97.50129188,15.769,15.757,20.0]
[1673450038950,97.50129188,15.769,15.756,67.61]
[1673450039370,17.0,15.768,15.756,67.61]
[1673450039581,1.92,15.767,15.756,20.0]
[1673450040217,1.92,15.767,15.755,20.0]
[1673450040849,1.92,15.767,15.754,47.62]
[1673450041047,13.59,15.76,15.754,47.62]
[1673450041258,13.59,15.76,15.753,47.62]
[1673450042225,1.92,15.759,15.753,47.62]
[1673450043901,0.96,15.759,15.753,47.62]
[1673450044126,13.59,15.76,15.754,20.0]
[1673450045274,0.96,15.759,15.753,67.62]
[1673450045482,1.92,15.759,15.753,20.0]
[1673450045693,1.92,15.759,15.753,67.62]
[1673450047275,1.92,15.759,15.753,47.62]
[1673450048195,1.92,15.759,15.75,20.0]
[1673450048196,1.92,15.759,15.751,47.63]
[1673450052086,1.92,15.759,15.75,20.0]
[1673450053251,1.92,15.759,15.751,47.63]
[1673450053469,18.92,15.759,15.749,47.63]
[1673450053782,18.92,15.759,15.748,47.63]
[1673450054203,1.92,15.759,15.748,47.63]
[1673450055883,1.92,15.759,15.749,20.0]
[1673450056285,1.92,15.759,15.75,47.63]
[1673450057458,1.92,15.759,15.749,47.63]
[1673450058283,1.92,15.759,15.75,20.0]
[1673450058725,1.92,15.759,15.751,47.63]
[1673450058911,13.72,15.76,15.751,47.63]
[1673450059335,13.72,15.76,15.752,20.0]
[1673450059764,13.72,15.76,15.753,47.62]
[1673450059975,112.3771,15.768,15.753,47.62]
[1673450060177,112.3771,15.768,15.755,20.0]
[1673450060506,13.68,15.77,15.756,20.0]
[1673450060702,13.68,15.77,15.757,21.92]
[1673450061120,13.68,15.77,15.758,67.6]
[1673450061347,13.68,15.77,15.759,20.0]
[1673450061751,13.68,15.77,15.76,47.6]
[1673450061960,13.68,15.77,15.76,163.2469]
[1673450062180,13.68,15.77,15.761,20.0]
[1673450062608,13.68,15.77,15.762,47.59]
[1673450062931,13.68,15.77,15.763,20.0]
[1673450065664,1.92,15.769,15.763,20.0]
[1673450066913,1.92,15.769,15.761,67.59]
[1673450067124,1.92,15.769,15.761,20.0]
[1673450068595,1.92,15.769,15.76,115.6469]
[1673450080294,1.92,15.769,15.756,47.61]
[1673450080295,55.38693843,15.768,15.756,47.61]
[1673450080487,55.38693843,15.768,15.753,156.4556]
[1673450080488,20.96,15.767,15.753,156.4556]
[1673450080696,13.72,15.76,15.753,47.62]
[1673450080908,0.96,15.759,15.749,47.63]
[1673450081120,0.96,15.758,15.749,47.63]
[1673450081332,0.96,15.757,15.749,47.63]
[1673450081663,0.96,15.756,15.749,47.63]
[1673450083757,0.96,15.755,15.749,47.63]
[1673450083945,0.96,15.755,15.747,47.64]
[1673450084154,0.96,15.755,15.748,20.0]
[1673450084492,0.96,15.755,15.748,40.0]
[1673450084696,0.96,15.755,15.749,47.63]
[1673450085339,0.96,15.754,15.749,47.63]
[1673450085859,68.58,15.76,15.749,47.63]
[1673450086050,1.92,15.759,15.749,47.63]
[1673450088589,21.92,15.759,15.749,47.63]
[1673450089217,1.92,15.759,15.749,47.63]
[1673450089426,18.92,15.759,15.749,47.63]
[1673450089625,1.92,15.759,15.749,47.63]
[1673450090787,18.92,15.759,15.749,47.63]
[1673450091328,1.92,15.759,15.749,47.63]
[1673450092060,18.92,15.759,15.749,47.63]
[1673450094355,1.92,15.759,15.749,47.63]
[1673450095527,18.92,15.759,15.749,47.63]
[1673450096273,20.0,15.758,15.748,20.0]
[1673450096482,18.92,15.757,15.747,20.0]
[1673450096880,1.92,15.757,15.747,20.0]
[1673450099198,1.92,15.757,15.748,47.63]
[1673450100480,183.4985,15.76,15.748,47.63]
[1673450101845,18.92,15.759,15.748,47.63]
[1673450106358,20.0,15.758,15.747,20.0]
[1673450106549,18.92,15.757,15.747,20.0]
[1673450107391,17.0,15.756,15.747,20.0]
[1673450107607,1.92,15.755,15.747,20.0]
[1673450107817,1.92,15.754,15.747,20.0]
[1673450108032,1.92,15.757,15.747,20.0]
[1673450108667,1.92,15.757,15.747,40.0]
[1673450109721,1.92,15.757,15.748,47.63]
[1673450109915,238.67543843,15.76,15.748,47.63]
[1673450110126,13.63,15.76,15.748,47.63]
[1673450110772,13.63,15.76,15.749,20.0]
[1673450111186,13.63,15.76,15.751,20.0]
[1673450111606,13.63,15.76,15.752,47.62]
[1673450111822,13.63,15.76,15.75,47.63]
[1673450112347,1.92,15.759,15.75,47.63]
[1673450112662,1.92,15.759,15.751,20.0]
[1673450112878,13.63,15.76,15.751,20.0]
[1673450113717,13.63,15.76,15.753,20.0]
[1673450114976,1.92,15.759,15.752,47.62]
[1673450115291,13.63,15.76,15.751,20.0]
[1673450116346,13.63,15.76,15.752,47.62]
[1673450116532,13.63,15.76,15.753,20.0]
[1673450117393,1.92,15.759,15.753,20.0]
[1673450117578,0.96,15.759,15.753,20.0]
[1673450117787,47.58,15.766,15.753,20.0]
[1673450118008,13.68,15.77,15.754,69.54]
[1673450118424,13.68,15.77,15.755,20.0]
[1673450118648,13.68,15.77,15.757,20.0]
[1673450118865,13.68,15.77,15.758,20.0]
[1673450119055,13.68,15.77,15.758,67.6]
[1673450119265,1.92,15.769,15.758,67.6]
[1673450120844,18.92,15.769,15.758,20.0]
[1673450121057,18.92,15.769,15.759,47.6]
[1673450121270,18.92,15.769,15.757,67.61]
[1673450121596,18.92,15.769,15.757,20.0]
[1673450121802,18.92,15.769,15.758,47.6]
[1673450122545,1.92,15.769,15.758,47.6]
[1673450125071,1.92,15.769,15.759,20.0]
[1673450125271,68.64,15.77,15.759,20.0]
[1673450125488,13.84,15.77,15.761,20.0]
[1673450126340,13.84,15.77,15.762,47.59]
[1673450126856,13.84,15.77,15.763,20.0]
[1673450127800,114.2904,15.776,15.763,20.0]
[1673450128529,1.92,15.775,15.763,20.0]
[1673450128956,1.92,15.775,15.764,47.59]
[1673450130229,38.06496728,15.775,15.764,47.59]
[1673450130534,21.06496728,15.775,15.764,47.59]
[1673450131276,1.92,15.775,15.764,47.59]
[1673450131587,1.92,15.775,15.765,20.0]
[1673450133285,102.85587176,15.779,15.765,20.0]
[1673450133492,55.31587176,15.779,15.767,20.0]
[1673450133710,13.88,15.78,15.768,20.0]
[1673450134023,13.88,15.78,15.768,176.0816]
[1673450134423,13.73,15.78,15.769,20.0]
[1673450134968,13.73,15.78,15.77,47.57]
[1673450135373,13.73,15.78,15.771,20.0]
[1673450135589,38.55158356,15.786,15.771,20.0]
[1673450135796,38.55158356,15.786,15.772,47.56]
[1673450136215,38.55158356,15.786,15.773,1.92]
[1673450136435,38.55158356,15.786,15.773,21.92]
[1673450136649,38.55158356,15.786,15.774,47.56]
[1673450137385,55.31587176,15.787,15.775,20.0]
[1673450137578,20.0,15.786,15.775,20.0]
[1673450138209,20.0,15.788,15.775,20.0]
[1673450138417,13.83,15.79,15.775,20.0]
[1673450138640,47.51,15.789,15.776,68.23470384]
[1673450138853,13.83,15.79,15.776,178.12140384]
[1673450139470,13.83,15.79,15.778,0.72063522]
[1673450139682,19.14496728,15.793,15.778,20.72063522]
[1673450139881,19.14496728,15.793,15.78,0.98398818]
[1673450140306,52.72621679,15.794,15.782,20.98398818]
[1673450141675,52.72621679,15.794,15.782,68.51398818]
[1673450141886,52.72621679,15.794,15.782,47.53]
[1673450142097,1.92,15.793,15.78,47.54]
[1673450142318,13.75,15.79,15.78,47.54]
[1673450142514,1.92,15.789,15.78,47.54]
[1673450143253,1.92,15.789,15.779,67.54]
[1673450144094,1.92,15.789,15.778,67.54]
[1673450144315,1.92,15.789,15.773,20.0]
[1673450144316,18.92,15.789,15.777,47.55]
[1673450144533,86.65496728,15.788,15.775,47.55]
[1673450144736,18.92,15.787,15.775,47.55]
[1673450144928,20.0,15.786,15.774,47.56]
[1673450145148,1.92,15.785,15.774,47.56]
[1673450145693,1.92,15.785,15.775,20.0]
[1673450147888,1.92,15.785,15.774,47.56]
[1673450148212,13.75,15.78,15.772,47.56]
[1673450148463,1.92,15.779,15.772,47.56]
[1673450148771,1.92,15.779,15.77,20.0]
[1673450149174,1.92,15.779,15.771,47.56]
[1673450150244,1.92,15.779,15.772,20.0]
[1673450150973,1.42,15.779,15.772,20.0]
[1673450151187,0.96,15.779,15.772,20.0]
[1673450153304,1.92,15.779,15.772,20.0]
[1673450153919,0.96,15.778,15.772,20.0]
[1673450154333,0.96,15.777,15.771,47.56]
[1673450154538,0.96,15.776,15.769,67.57]
[1673450154753,0.96,15.775,15.769,67.57]
[1673450154966,0.96,15.774,15.769,67.57]
[1673450155173,0.96,15.774,15.769,20.0]
[1673450155387,0.96,15.773,15.769,20.0]
[1673450155707,13.75,15.78,15.769,20.0]
[1673450155917,0.96,15.779,15.769,20.0]
[1673450156134,0.96,15.778,15.769,20.0]
[1673450156322,0.96,15.777,15.769,20.0]
[1673450156535,0.96,15.776,15.769,20.0]
[1673450156749,0.96,15.775,15.769,20.0]
[1673450158339,0.96,15.774,15.766,47.58]
[1673450158657,0.96,15.773,15.767,20.0]
[1673450158860,0.96,15.772,15.767,20.0]
[1673450159179,0.96,15.771,15.766,20.0]
[1673450159393,0.96,15.771,15.767,20.0]
[1673450160954,0.96,15.771,15.762,47.59]
[1673450161174,19.19,15.77,15.762,47.59]
[1673450161494,0.96,15.769,15.761,47.59]
[1673450161893,0.96,15.768,15.761,47.59]
[1673450162103,0.96,15.767,15.761,47.59]
[1673450162309,0.96,15.766,15.759,47.6]
[1673450162533,0.96,15.765,15.758,47.6]
[1673450162746,0.96,15.764,15.758,47.6]
[1673450162966,0.96,15.763,15.758,47.6]
[1673450163886,0.96,15.763,15.759,20.0]
[1673450165472,18.23,15.77,15.759,20.0]
[1673450165673,1.92,15.769,15.759,20.0]
[1673450167790,108.04208855,15.778,15.761,20.0]
[1673450167992,91.29,15.78,15.761,20.0]
[1673450168209,91.29,15.78,15.763,20.0]
[1673450168626,91.29,15.78,15.765,20.0]
[1673450169376,1.92,15.778,15.765,20.0]
[1673450169562,1.92,15.778,15.766,47.58]
[1673450169980,18.92,15.778,15.766,47.58]
[1673450170207,20.0,15.777,15.766,47.58]
[1673450170396,1.92,15.776,15.766,47.58]
[1673450170727,1.92,15.776,15.763,20.0]
[1673450170949,1.92,15.776,15.762,47.59]
[1673450170950,18.29,15.77,15.762,47.59]
[1673450171156,18.29,15.77,15.757,117.1247]
[1673450171157,18.29,15.77,15.761,47.59]
[1673450171375,1.92,15.769,15.758,47.6]
[1673450171687,1.92,15.769,15.759,20.0]
[1673450172097,1.92,15.769,15.76,47.6]
[1673450173060,1.92,15.769,15.759,47.6]
[1673450176423,18.92,15.769,15.759,47.6]
[1673450177149,1.92,15.769,15.759,47.6]
[1673450180309,93.38083904,15.769,15.754,47.62]
[1673450180521,193.67705583,15.769,15.755,20.0]
[1673450180724,20.0,15.768,15.753,47.62]
[1673450180932,18.29,15.76,15.752,118.5753]
[1673450181137,18.29,15.76,15.747,20.0]
[1673450181342,1.92,15.759,15.749,20.0]
[1673450181881,1.92,15.759,15.751,20.0]
[1673450182298,1.92,15.759,15.752,47.62]
[1673450183353,1.92,15.759,15.753,20.0]
[1673450183670,1.92,15.759,15.752,47.62]
[1673450183881,1.92,15.759,15.749,20.0]
[1673450184072,1.92,15.759,15.75,47.63]
[1673450191526,18.29,15.76,15.75,47.63]
[1673450191739,18.29,15.76,15.751,20.0]
[1673450192163,18.29,15.76,15.752,47.62]
[1673450192911,1.92,15.759,15.752,47.62]
[1673450193943,1.92,15.759,15.75,47.63]
[1673450195108,1.92,15.759,15.748,47.63]
[1673450197206,1.92,15.759,15.749,20.0]
[1673450197626,1.92,15.759,15.75,47.63]
[1673450198470,18.92,15.759,15.748,47.63]
[1673450198916,18.92,15.759,15.747,47.64]
[1673450199106,18.92,15.759,15.748,20.0]
[1673450199741,18.92,15.759,15.749,47.63]
[1673450200670,18.92,15.759,15.748,20.0]
[1673450200900,20.0,15.758,15.746,20.0]
[1673450201110,17.96,15.757,15.746,20.0]
[1673450201346,0.96,15.756,15.747,47.64]
[1673450201651,0.96,15.755,15.748,20.0]
[1673450201867,0.96,15.754,15.748,20.0]
[1673450202179,0.96,15.753,15.746,20.0]
[1673450202373,0.96,15.752,15.746,20.0]
[1673450202584,0.96,15.751,15.747,47.64]
[1673450202804,91.57,15.76,15.747,47.64]
[1673450203016,91.57,15.76,15.748,20.0]
[1673450203225,20.0,15.759,15.748,20.0]
[1673450203648,91.57,15.76,15.747,20.0]
[1673450204266,18.92,15.759,15.747,20.0]
[1673450204701,18.92,15.759,15.747,40.0]
[1673450207539,18.92,15.759,15.747,20.0]
[1673450209411,38.06496728,15.759,15.747,20.0]
[1673450213106,38.06496728,15.759,15.747,40.0]
[1673450213932,18.92,15.759,15.747,20.0]
[1673450214137,66.52,15.759,15.747,20.0]
[1673450214353,66.52,15.759,15.746,20.0]
[1673450214668,83.89381424,15.758,15.742,47.65]
[1673450214892,18.15,15.75,15.739,47.66]
[1673450215102,1.92,15.749,15.739,67.66]
[1673450215624,1.92,15.749,15.74,20.0]
[1673450219829,1.92,15.749,15.741,47.66]
[1673450220994,1.92,15.749,15.739,67.66]
[1673450223215,13.76,15.75,15.739,67.66]
[1673450225309,1.92,15.749,15.739,67.66]
[1673450226559,1.92,15.749,15.739,47.66]
[1673450227420,1.92,15.749,15.74,20.0]
[1673450228023,1.92,15.749,15.739,47.66]
[1673450228258,18.92,15.749,15.738,47.66]
[1673450234977,20.0,15.748,15.738,47.66]
[1673450235195,18.92,15.747,15.737,47.67]
[1673450235507,17.96,15.746,15.738,20.0]
[1673450235700,0.96,15.745,15.738,20.0]
[1673450235913,0.96,15.744,15.737,47.67]
[1673450236140,0.96,15.744,15.736,5.4773767]
[1673450236141,0.96,15.743,15.736,5.4773767]
[1673450236344,0.96,15.742,15.736,5.4773767]
[1673450236551,0.96,15.741,15.736,5.4773767]
[1673450236870,0.96,15.74,15.736,5.4773767]
[1673450237191,0.96,15.739,15.736,5.4773767]
[1673450237503,0.96,15.738,15.736,5.4773767]
[1673450237710,0.96,15.737,15.736,5.4773767]
[1673450237925,1.92,15.737,15.736,5.4773767]
[1673450243796,59.72807319,15.744,15.736,5.4773767]
[1673450244006,47.65,15.743,15.736,5.4773767]
[1673450244440,107.37807319,15.743,15.736,5.4773767]
[1673450244652,6.48589,15.744,15.736,5.4773767]
[1673450244865,67.63,15.748,15.736,5.4773767]
[1673450245179,20.0,15.748,15.736,5.4773767]
[1673450245892,49.10499953,15.755,15.737,47.67]
[1673450246231,114.207,15.759,15.739,20.0]
[1673450246423,20.0,15.758,15.739,20.0]
[1673450246626,67.6,15.758,15.74,47.66]
[1673450247062,67.6,15.758,15.741,20.0]
[1673450247385,18.92,15.757,15.741,20.0]
[1673450247598,18.92,15.757,15.743,20.0]
[1673450247806,13.76,15.75,15.743,20.0]
[1673450247998,47.6,15.758,15.744,47.65]
[1673450248208,47.6,15.758,15.743,20.0]
[1673450249079,20.0,15.757,15.743,20.0]
[1673450249818,47.6,15.758,15.743,20.0]
[1673450250002,13.88,15.76,15.744,68.61]
[1673450250212,13.88,15.76,15.745,20.0]
[1673450250421,13.88,15.76,15.746,20.0]
[1673450250740,47.58,15.766,15.747,20.0]
[1673450250940,119.2633,15.768,15.748,20.0]
[1673450251155,119.2633,15.768,15.749,20.96]
[1673450251678,119.2633,15.768,15.75,47.63]
[1673450251909,1.92,15.767,15.751,20.0]
[1673450252118,13.75,15.76,15.75,47.63]
[1673450252312,1.92,15.759,15.75,47.63]
[1673450253274,1.92,15.759,15.751,20.0]
[1673450253679,1.92,15.759,15.752,47.62]
[1673450254111,1.92,15.759,15.753,20.0]
[1673450255063,13.75,15.76,15.753,20.0]
[1673450256326,1.92,15.759,15.753,20.0]
[1673450270818,20.0,15.765,15.753,20.0]
[1673450271240,20.0,15.765,15.755,20.0]
[1673450271451,20.0,15.767,15.755,20.0]
[1673450272318,1.92,15.766,15.755,20.0]
[1673450273460,49.5,15.766,15.755,20.0]
[1673450273671,20.0,15.765,15.755,20.0]
[1673450273876,1.92,15.764,15.755,20.0]
[1673450274088,1.92,15.764,15.754,47.62]
[1673450274297,18.32,15.76,15.731,20.0]
[1673450274520,18.32,15.76,15.736,119.1998767]
[1673450274521,17.96,15.759,15.736,119.1998767]
[1673450274732,0.96,15.758,15.736,119.1998767]
[1673450274943,0.96,15.757,15.749,47.63]
[1673450275139,0.96,15.756,15.749,47.63]
[1673450275359,0.96,15.755,15.747,20.0]
[1673450275688,0.96,15.754,15.747,20.0]
[1673450275892,0.96,15.753,15.748,67.63]
[1673450276102,0.96,15.754,15.748,67.63]
[1673450276421,0.96,15.754,15.751,20.0]
[1673450279809,0.96,15.754,15.748,67.63]
[1673450279995,0.96,15.753,15.742,47.65]
[1673450280396,18.32,15.75,15.742,47.65]
[1673450280620,1.92,15.749,15.742,47.65]
[1673450281233,1.92,15.749,15.741,67.66]
[1673450286927,0.96,15.749,15.741,67.66]
[1673450287134,13.76,15.75,15.741,67.66]
[1673450287982,13.75,15.75,15.741,67.66]
[1673450288377,1.92,15.749,15.741,67.66]
[1673450296790,13.75,15.75,15.741,67.66]
[1673450300911,1.92,15.749,15.741,67.66]
[1673450302698,1.92,15.749,15.741,20.0]
[1673450303876,13.75,15.75,15.743,20.0]
[1673450304277,13.75,15.75,15.744,47.65]
[1673450305338,1.92,15.749,15.744,47.65]
[1673450305539,1.92,15.749,15.743,20.0]
[1673450305749,1.92,15.749,15.741,67.66]
[1673450306277,1.92,15.749,15.741,20.0]
[1673450310490,1.92,15.749,15.742,47.65]
[1673450310811,1.92,15.749,15.741,67.66]
[1673450311427,13.75,15.76,15.742,20.0]
[1673450311632,13.75,15.76,15.743,20.0]
[1673450311842,13.75,15.76,15.744,20.0]
[1673450312059,13.75,15.76,15.745,20.0]
[1673450312275,13.75,15.76,15.745,67.64]
[1673450312472,13.75,15.76,15.746,20.0]
[1673450312683,13.75,15.76,15.747,20.0]
[1673450312888,0.96,15.759,15.747,67.64]
[1673450313118,0.96,15.759,15.748,20.0]
[1673450313650,0.96,15.758,15.748,20.0]
[1673450313967,0.96,15.757,15.749,47.63]
[1673450314152,0.96,15.756,15.748,47.63]
[1673450314364,0.96,15.755,15.747,47.64]
[1673450314570,0.96,15.754,15.743,47.65]
[1673450314799,13.75,15.75,15.742,67.65]
[1673450314996,0.96,15.749,15.742,67.65]
[1673450315417,0.96,15.748,15.742,67.65]
[1673450315622,0.96,15.747,15.742,67.65]
[1673450315850,0.96,15.749,15.742,67.65]
[1673450317108,0.96,15.748,15.742,67.65]
[1673450317429,0.96,15.747,15.742,20.0]
[1673450317843,0.96,15.746,15.742,20.0]
[1673450318055,0.96,15.745,15.742,20.0]
[1673450325755,13.75,15.75,15.742,20.0]
[1673450326909,1.92,15.749,15.742,20.0]
[1673450330126,1.92,15.749,15.741,47.66]
[1673450330296,20.0,15.748,15.738,47.66]
[1673450330488,20.0,15.748,15.736,5.4773767]
[1673450330489,0.96,15.747,15.736,5.4773767]
[1673450330816,30.96,15.746,15.736,5.4773767]
[1673450331008,20.96,15.745,15.736,5.4773767]
[1673450331230,0.96,15.744,15.736,5.4773767]
[1673450331506,0.96,15.743,15.736,5.4773767]
[1673450331671,0.96,15.742,15.736,5.4773767]
[1673450331850,0.96,15.741,15.736,5.4773767]
[1673450332068,0.96,15.74,15.736,5.4773767]
[1673450332298,0.96,15.739,15.736,5.4773767]
[1673450332722,0.96,15.738,15.736,5.4773767]
[1673450332913,0.96,15.737,15.736,5.4773767]
[1673450333352,1.92,15.737,15.736,5.4773767]
[1673450337705,0.96,15.737,15.736,5.4773767]
[1673450342358,0.96,15.737,15.736,7.67e-05]
[1673450343416,49.59,15.737,15.736,7.67e-05]
[1673450343630,86.59,15.737,15.736,7.67e-05]
[1673450344073,69.59,15.737,15.736,7.67e-05]
[1673450345200,121.94055635,15.737,15.736,7.67e-05]
[1673450345410,138.94055635,15.737,15.736,7.67e-05]
[1673450345614,158.94055635,15.737,15.736,7.67e-05]
[1673450345934,208.04555588,15.737,15.736,7.67e-05]
[1673450347103,399.54555588,15.737,15.736,7.67e-05]
[1673450347730,430.74848364,15.737,15.736,7.67e-05]
[1673450348138,431.40883681,15.737,15.736,7.67e-05]
[1673450348351,430.74848364,15.737,15.736,7.67e-05]
[1673450348611,431.43285886,15.737,15.736,7.67e-05]
[1673450348988,20.0,15.736,15.715,47.73]
[1673450349206,68.56,15.73,15.714,67.74]
[1673450349410,28.40589,15.729,15.714,67.74]
[1673450349741,76.09589,15.729,15.714,67.74]
[1673450350256,74.17589,15.729,15.715,20.0]
[1673450350463,26.48589,15.729,15.717,47.73]
[1673450350668,20.0,15.729,15.717,47.73]
[1673450351510,68.56,15.73,15.717,47.73]
[1673450351728,68.56,15.73,15.719,47.72]
[1673450351925,68.56,15.73,15.72,20.0]
[1673450352354,68.56,15.73,15.722,20.0]
[1673450352875,68.56,15.73,15.723,47.71]
[1673450354267,1.92,15.729,15.723,47.71]
[1673450354562,1.92,15.729,15.721,47.72]
[1673450354769,1.92,15.729,15.72,20.0]
[1673450355006,18.92,15.729,15.719,47.72]
[1673450355187,20.0,15.728,15.718,67.73]
[1673450355412,18.92,15.727,15.718,20.0]
[1673450355618,20.0,15.726,15.718,20.0]
[1673450355821,1.92,15.725,15.718,20.0]
[1673450360918,20.0,15.728,15.718,20.0]
[1673450361072,20.0,15.729,15.718,20.0]
[1673450362342,1.92,15.728,15.718,20.0]
[1673450363084,18.92,15.728,15.718,20.0]
[1673450363292,20.0,15.727,15.718,20.0]
[1673450363479,1.92,15.726,15.718,20.0]
[1673450366357,21.06496728,15.726,15.718,20.0]
[1673450366550,20.0,15.725,15.718,20.0]
[1673450366760,1.92,15.724,15.718,20.0]
[1673450369908,1.92,15.724,15.717,20.0]
[1673450370129,1.92,15.724,15.716,20.0]
[1673450373838,1.92,15.724,15.716,67.73]
[1673450375999,1.92,15.724,15.711,225.4458]
[1673450376204,18.3,15.72,15.711,161.7958]
[1673450376436,1.92,15.719,15.711,161.7958]
[1673450377027,1.92,15.719,15.713,73.2173767]
[1673450379029,1.92,15.719,15.713,25.4773767]
[1673450385973,1.92,15.719,15.713,5.4773767]
[1673450387006,18.92,15.719,15.713,5.4773767]
[1673450387444,19.14496728,15.718,15.713,5.4773767]
[1673450387769,21.92,15.717,15.713,5.4773767]
[1673450388710,20.0,15.716,15.713,5.4773767]
[1673450388957,1.92,15.715,15.713,5.4773767]
[1673450392287,19.14496728,15.719,15.713,5.4773767]
[1673450392498,19.14496728,15.719,15.714,67.74]
[1673450392694,9.62106728,15.719,15.714,67.74]
[1673450395443,155.8267,15.728,15.714,67.74]
[1673450395752,38.92,15.727,15.714,67.74]
[1673450398277,47.7,15.726,15.714,20.0]
[1673450398550,18.41,15.72,15.714,20.0]
[1673450398903,1.92,15.719,15.714,20.0]
[1673450399979,1.92,15.719,15.714,67.74]
[1673450400162,1.92,15.719,15.714,20.0]
[1673450400698,1.92,15.719,15.713,5.4773767]
[1673450400903,18.92,15.719,15.713,5.4773767]
[1673450401231,20.0,15.718,15.713,5.4773767]
[1673450401534,18.92,15.717,15.713,5.4773767]
[1673450401785,20.0,15.716,15.713,5.4773767]
[1673450401953,1.92,15.715,15.713,5.4773767]
[1673450404271,20.0,15.718,15.713,5.4773767]
[1673450404468,20.0,15.719,15.713,5.4773767]
[1673450405523,1.92,15.718,15.713,5.4773767]
[1673450405733,20.0,15.719,15.713,5.4773767]